{"text_format":"1","workbook":"xlsx","n_sheets":1,"sheets":["大会議室"],"not_rendered":{"charts":0,"images":0,"macros":1,"external_links":0,"defined_names":1,"comments":0,"pivot_tables":0},"unopened":[],"bounds":{"document_bytes":16777216,"sheet_cells":100000,"rows_first":2000,"rows_last":500,"rows_between":2000,"halvings":0,"cell_chars":16384,"cell_head_chars":4096},"cells_cut":0,"cells_raw":0,"read":"whole","date_system":"1900"}

{"sheet":"大会議室","index":0,"n_rows":55,"n_cols":20,"rows_kept":55,"cut":false,"hidden":false,"merged":[[25,0,36,0],[16,0,24,0],[16,1,16,2],[17,1,17,2],[18,1,18,2],[19,1,19,2],[20,1,20,2],[21,1,21,2],[36,1,36,2],[41,6,41,8],[11,1,11,2],[12,1,12,9],[13,1,14,1],[15,1,15,2],[43,9,44,9],[25,1,25,2],[26,1,26,2],[27,1,27,2],[28,1,28,2],[34,1,34,2],[29,1,29,2],[30,1,30,2],[31,1,31,2],[32,1,32,2],[33,1,33,2],[35,1,35,2],[39,6,39,8],[40,6,40,8],[37,0,37,2],[38,0,38,2],[22,1,22,2],[23,1,23,2],[24,1,24,2],[11,0,15,0],[0,0,0,9],[9,0,10,0],[9,1,10,2],[9,3,10,3],[9,4,10,4],[9,5,10,5],[9,6,9,8],[2,0,3,2],[2,5,2,9],[3,4,3,9]]}
["ピアザ淡海　滋賀県立県民交流センター",null,null,null,null,null,null,null,null,null,null,null,null,null,null,"2019年2月1日改定"]
["■付帯設備使用申込書"]
["大会議室",null,null,null,null,"ピアザ淡海　滋賀県立県民交流センター"]
[null,null,null,null,"指定管理者　株式会社コンベンションリンケージ"]
[null,null,null,null,null,null,"h:mm",null,"h:mm","←記入例"]
[null,null,"yyyy/mm/dd ←記入例（西暦）",null,"　　本番時間",null,null,"～"]
["利用日",null,null,null,null,null,"午前","午後","夜間"]
[null,null,null,null,"　　　利用区分",null,null,null,null,null,null,{"$f":"IF(P8,1)","v":false},{"$f":"IF(Q8,1)","v":false},{"$f":"IF(R8,1)","v":false},{"$f":"SUM(L8:N8)","v":0},false,false,false]
[]
["種別","品　　　名",null,"単位","利用料","数量","区　分",null,null,"金　額"]
[null,null,null,null,null,null,"A","P","N",null,null,null,null,null,"計"]
["音\n響\n設\n備","拡声装置（基本：マイク３本）",null,"一式",1600,null,null,null,null,{"$f":"IF(F12=\"\",\"\",E12*F12*O12)","v":""},{"$f":"\"拡声装置\"&$F$12","v":"拡声装置"},{"$f":"IF(P12,1)","v":false},{"$f":"IF(Q12,1)","v":false},false,{"$f":"SUM(L12:N12)","v":0},false,false,false,null,{"$f":"\"拡声装置\"&$F$12","v":"拡声装置"}]
[null,"（アンプやスピーカー等の設備を含みますので、マイクが１本しか必要ない場合でもこれが必要です。）"]
[null,"追加","ダイナミックマイク","本",560,null,null,null,null,{"$f":"IF(F14=\"\",\"\",E14*F14*O14)","v":""},{"$f":"\"ダイナ\"&$F$14","v":"ダイナ"},{"$f":"IF(P14,1)","v":false},false,false,{"$f":"SUM(L14:N14)","v":0},false,false,false,null,{"$f":"\"ダイナ\"&$F$14","v":"ダイナ"}]
[null,null,"ワイヤレスマイク（ハンド・ピン）","本",560,null,null,null,null,"",{"$f":"\"ハンド\"&$F$15","v":"ハンド"},false,false,false,0,false,false,false,null,{"$f":"\"ハンド\"&$F$15","v":"ハンド"}]
[null,"カセット・ＣＤ・ＭＤデッキ",null,"台",330,null,null,null,null,"",{"$f":"\"カセット・CD・MD\"&$F$16","v":"カセット・CD・MD"},false,false,false,0,false,false,false,null,{"$f":"\"カセット・CD・MD\"&$F$16","v":"カセット・CD・MD"}]
["映\n像\n設\n備","ＤＶＤプレーヤー",null,"台",560,null,null,null,null,"",{"$f":"\"DVD\"&$F$17","v":"DVD"},false,false,false,0,false,false,false,null,{"$f":"\"DVD\"&$F$17","v":"DVD"}]
[null,"ビデオデッキ",null,"台",560,null,null,null,null,"",{"$f":"\"ビデオ\"&$F$18","v":"ビデオ"},false,false,false,0,false,false,false,null,{"$f":"\"ビデオ\"&$F$18","v":"ビデオ"}]
[null,"書画カメラ",null,"台",560,null,null,null,null,"",{"$f":"\"書画\"&$F$19","v":"書画"},false,false,false,0,false,false,false,null,{"$f":"\"書画\"&$F$19","v":"書画"}]
[null,"スライド",null,"台",560,null,null,null,null,"",{"$f":"\"スライド\"&$F$20","v":"スライド"},false,false,false,0,false,false,false,null,{"$f":"\"スライド\"&$F$20","v":"スライド"}]
[null,"高照度ＯＨＰ",null,"台",1700,null,null,null,null,"",{"$f":"\"OHP\"&$F$21","v":"OHP"},false,false,false,0,false,false,false,null,{"$f":"\"OHP\"&$F$21","v":"OHP"}]
[null,"単体プロジェクター",null,"台",450,null,null,null,null,"",{"$f":"\"単体プロジェクター\"&$F$22","v":"単体プロジェクター"},false,false,false,0,false,false,false,null,{"$f":"\"単体プロジェクター\"&$F$22","v":"単体プロジェクター"}]
[null,"大型スクリーン",null,"台",560,null,null,null,null,"",{"$f":"\"大型スクリーン\"&$F$23","v":"大型スクリーン"},false,false,false,0,false,false,false,null,{"$f":"\"大型スクリーン\"&$F$23","v":"大型スクリーン"}]
[null,"三脚スクリーン",null,"台",120,null,null,null,null,"",{"$f":"\"三脚スクリーン\"&$F$24","v":"三脚スクリーン"},false,false,false,0,false,false,false,null,{"$f":"\"三脚スクリーン\"&$F$24","v":"三脚スクリーン"}]
[null,"レーザーポインター（緑）",null,"個",120,null,null,null,null,"",{"$f":"\"レーザーポインター\"&$F$25","v":"レーザーポインター"},false,false,false,0,false,false,false,null,{"$f":"\"レーザーポインター\"&$F$25","v":"レーザーポインター"}]
["そ\nの\n他\n備\n品","円卓会議システム",null,"一式",28290,null,null,null,null,"",{"$f":"\"円卓\"&$F$26","v":"円卓"},false,false,false,0,false,false,false,null,{"$f":"\"円卓\"&$F$26","v":"円卓"}]
[null,"簡易ステージ",null,"台",210,null,null,null,null,"",{"$f":"\"簡易ステージ\"&$F$27","v":"簡易ステージ"},false,false,false,0,false,false,false,null,{"$f":"\"簡易ステージ\"&$F$27","v":"簡易ステージ"}]
[null,"演台・花台（３点セット）",null,"一式",220,null,null,null,null,"",{"$f":"\"演台・花台\"&$F$28","v":"演台・花台"},false,false,false,0,false,false,false,null,{"$f":"\"演台・花台\"&$F$28","v":"演台・花台"}]
[null,"司会者台",null,"台",120,null,null,null,null,"",{"$f":"\"司会者台\"&$F$29","v":"司会者台"},false,false,false,0,false,false,false,null,{"$f":"\"司会者台\"&$F$29","v":"司会者台"}]
[null,"パントリー ",null,"一式",5500,null,null,null,null,"",{"$f":"\"パントリー\"&$F$30","v":"パントリー"},false,false,false,0,false,false,false,null,{"$f":"\"パントリー\"&$F$30","v":"パントリー"}]
[null,"会議机",null,"脚",110,null,null,null,null,"",{"$f":"\"机\"&$F$31","v":"机"},false,false,false,0,false,false,false,null,{"$f":"\"机\"&$F$31","v":"机"}]
[null,"会議椅子",null,"脚",60,null,null,null,null,"",{"$f":"\"椅子\"&$F$32","v":"椅子"},false,false,false,0,false,false,false,null,{"$f":"\"椅子\"&$F$32","v":"椅子"}]
[null,"金屏風",null,"枚",660,null,null,null,null,"",{"$f":"\"金屏風\"&$F$33","v":"金屏風"},false,false,false,0,false,false,false,null,{"$f":"\"金屏風\"&$F$33","v":"金屏風"}]
[null,"展示パネル",null,"枚",110,null,null,null,null,"",{"$f":"\"展パネ\"&$F$34","v":"展パネ"},false,false,false,0,false,false,false,null,{"$f":"\"展パネ\"&$F$34","v":"展パネ"}]
[null,"ホワイトボード",null,"台",320,null,null,null,null,"",{"$f":"\"WB\"&$F$35","v":"WB"},false,false,false,0,false,false,false,null,{"$f":"\"WB\"&$F$35","v":"WB"}]
[null,"演奏者用椅子（バス椅子）",null,"脚",110,null,null,null,null,"",{"$f":"\"コンセント\"&$F$36","v":"コンセント"},false,false,false,0,false,false,false,null,{"$f":"\"コンセント\"&$F$36","v":"コンセント"}]
[null,"持込機材電気使用料(1Kwまで無料、以上1Kw毎）",null,"１ｋｗ",110,null,null,null,null,"",{"$f":"\"演奏者用椅子\"&$F$37","v":"演奏者用椅子"},false,false,false,0,false,false,false,null,{"$f":"\"演奏者用椅子\"&$F$37","v":"演奏者用椅子"}]
["        インターネット回線",null,null,1,1100,null,null,null,null,{"$f":"E38*O38","v":0},null,false,false,false,0,false,false,false]
[null,null,null,null,null,null,null,null,null,"",null,false,false,false,0,false,false,false]
[null,null,null,null,null,null,"①ネット回線",null,null,{"$f":"SUM(J38:J39)","v":0}]
[null,null,null,null,null,null,"②備品",null,null,{"$f":"SUM(J11:J37)","v":0}]
[null,null,null,null,null,null,"合計(①+②)",null,null,{"$f":"SUM(J12:J39)","v":0}]
[null,null,"※　マイクは、ダイナミック４本・ワイヤレス３本、最大７本です。"]
[null,null,"※付帯設備の利用料については、上記の表に基づいてお支払いください。",null,null,null,null,null,null,null,null,null,null,null,null,null,2019,1]
[null,null,"　 尚、事前のお支払いでも当日追加変更が、あった場合追加分の料金が",null,null,null,null,null,null,null,null,null,null,null,null,null,2020,2]
[null,null,"        必要となります。",null,null,null,null,null,null,null,null,null,null,null,null,null,2021,3]
[null,null,"※お申込みの追加備品につきましては、数に制約がありご要望に",null,null,null,null,null,null,null,null,null,null,null,null,null,2022,4]
[null,null,"　 添えない場合がありますのでご了承ください。",null,null,null,null,null,null,null,null,null,null,null,null,null,2023,5]
[null,null,"※本申込書にて付帯設備を手配しますので、1部屋1枚で作成お願いします。",null,null,null,null,null,null,null,null,null,null,null,null,null,2024,6]
[null,null,"　 また2日間以上の継続ご利用でも1日毎に作成ください。",null,null,null,null,null,null,null,null,null,null,null,null,null,2025,7]
[null,null,"※各部屋で使用できる電気容量には上限がございますので、消費電力量の",null,null,null,null,null,null,null,null,null,null,null,null,null,2026,8]
[null,null,"　 大きい機器類をお持ち込の際には、必ず事前にお申し出ください。",null,null,null,null,null,null,null,null,null,null,null,null,null,2027,9]
[null,null,"※ネット回線はランコネクター接続となります。接続用ケーブル、無線で接続の",null,null,null,null,null,null,null,null,null,null,null,null,null,2028,10]
[null,null,"　場合はWiFiルーターを持参ください。",null,null,null,null,null,null,null,null,null,null,null,null,null,2029,11]
[null,null,null,null,null,null,null,null,null,null,null,null,null,null,null,null,2030,12]